bitfinex/quotes_ETHUSD_20241009
["timestamp","ask_amount","ask_price","bid_price","bid_amount"]
[1728432275783,0.7582,2444.1,2443.6,4.09226]
[1728432275987,0.7582,2444.1,2443.7,4.09205]
[1728432276427,0.7582,2444.1,2443.8,4.09194]
[1728432276791,0.7582,2444.1,2443.6,7.85936363]
[1728432276985,0.7582,2444.1,2443.6,4.09225]
[1728432277290,0.7582,2444.1,2443.6,8.18447]
[1728432277687,0.7582,2444.1,2443.6,4.09222]
[1728432277933,4.09161,2444.1,2443.4,4.0925]
[1728432278232,0.7889,2444.0,2443.4,4.0925]
[1728432280534,4.88055,2444.0,2443.4,4.0925]
[1728432281222,0.7889,2444.0,2443.5,4.09247]
[1728432281822,0.7889,2444.0,2443.4,4.0925]
[1728432282023,0.7889,2444.0,2443.4,5.36587136]
[1728432282240,0.7889,2444.0,2443.4,9.45842136]
[1728432282389,0.7889,2444.0,2443.4,5.36587136]
[1728432283055,0.7581,2443.8,2443.2,4.09296]
[1728432283196,0.7581,2443.8,2442.8,3.0]
[1728432283197,4.09293,2443.3,2442.7,4.09373]
[1728432283397,0.8131,2443.2,2442.7,4.09373]
[1728432283630,0.8131,2443.2,2442.8,0.409373]
[1728432284033,0.8131,2443.2,2442.8,4.502993]
[1728432284234,0.8131,2443.2,2442.9,4.09348]
[1728432284838,4.90616,2443.2,2442.8,0.409373]
[1728432285044,4.90616,2443.2,2442.5,4.094]
[1728432285579,4.90616,2443.2,2442.6,4.09393]
[1728432286768,0.8131,2443.2,2442.7,4.09375]
[1728432287082,0.8131,2443.2,2442.8,4.09365]
[1728432287675,0.8131,2443.2,2442.9,4.09347]
[1728432288763,0.7552,2443.5,2443.0,4.09321]
[1728432289256,0.7552,2443.5,2443.1,4.09305]
[1728432289660,0.7552,2443.5,2443.2,4.09295]
[1728432291862,0.7552,2443.5,2443.2,4.911566]
[1728432292186,0.8171,2443.8,2443.4,4.09265]
[1728432292652,0.8171,2443.8,2443.2,4.911466]
[1728432292989,0.8171,2443.8,2443.3,4.09272]
[1728432293449,0.8171,2443.8,2443.4,4.09261]
[1728432293790,0.8171,2443.8,2443.4,8.18516]
[1728432294360,0.8171,2443.8,2443.5,4.09238]
[1728432294559,0.7703,2444.0,2443.6,4.09229]
[1728432294764,3.7703,2444.0,2443.6,4.09229]
[1728432296298,0.7703,2444.0,2443.6,9.079924]
[1728432298661,0.7703,2444.0,2443.7,4.09205]
[1728432298900,0.7703,2444.0,2443.8,4.09189]
[1728432299874,1.01300346,2444.2,2443.8,4.09187]
[1728432300070,1.01300346,2444.2,2443.9,0.409187]
[1728432300468,0.20630346,2444.2,2443.9,0.409187]
[1728432300888,0.7637,2444.1,2443.6,4.987664]
[1728432301106,0.7637,2444.1,2443.8,4.09198]
[1728432303569,0.7637,2444.1,2443.9,4.09181]
[1728432303909,0.20630346,2444.2,2443.9,4.09181]
[1728432304111,0.20630346,2444.2,2444.0,0.818379]
[1728432304470,0.20630346,2444.2,2443.6,0.895444]
[1728432304471,4.85161,2444.1,2443.6,0.895444]
[1728432304717,4.09183,2443.9,2443.4,4.09254]
[1728432306069,0.7601,2444.0,2443.4,4.09254]
[1728432306269,0.7601,2444.0,2443.5,4.09238]
[1728432307797,0.7601,2444.0,2443.4,8.18509]
[1728432307798,4.85186,2444.0,2443.4,8.18509]
[1728432307997,4.85186,2444.0,2443.5,0.50718886]
[1728432308231,0.7601,2444.0,2443.5,4.59960886]
[1728432310047,4.09182,2443.9,2443.2,8.68125363]
[1728432310193,6.97341709,2444.2,2443.2,4.09286]
[1728432310387,6.97341709,2444.2,2442.8,4.8606]
[1728432310388,4.87931,2443.4,2442.8,4.8606]
[1728432310602,4.0926,2443.5,2442.6,4.09388]
[1728432310603,4.87984,2443.1,2442.6,4.09388]
[1728432310822,0.7866,2443.1,2442.6,4.09388]
[1728432311031,0.7866,2443.1,2442.7,0.409388]
[1728432311211,0.7866,2443.1,2442.6,8.18775]
[1728432311586,0.7866,2443.1,2442.8,4.09356]
[1728432311828,0.7866,2443.1,2442.8,8.18712]
[1728432312131,0.7866,2443.1,2442.8,4.09356]
[1728432312430,0.7707,2443.4,2443.0,4.09328]
[1728432312793,0.7707,2443.4,2442.8,9.00287]
[1728432312997,4.86336,2443.4,2442.9,0.900287]
[1728432313393,4.86336,2443.4,2442.8,4.90931]
[1728432313394,4.09284,2443.3,2442.8,4.09351]
[1728432313695,4.86336,2443.4,2442.8,4.09351]
[1728432315531,4.86336,2443.4,2442.8,8.18706]
[1728432315828,4.86336,2443.4,2442.8,4.09351]
[1728432316133,4.86336,2443.4,2442.8,4.583901]
[1728432316605,0.8306,2443.1,2442.6,4.0939]
[1728432317330,0.8306,2443.1,2442.6,8.1878]
[1728432317631,0.8306,2443.1,2442.6,3.76711363]
[1728432317798,0.8306,2443.1,2442.8,4.09356]
[1728432318000,0.8306,2443.1,2442.9,0.409356]
[1728432318633,0.8306,2443.1,2442.9,4.502806]
[1728432318806,0.7868,2443.3,2442.9,4.502806]
[1728432319694,0.7868,2443.3,2442.9,0.409356]
[1728432319888,0.7868,2443.3,2442.8,4.85666]
[1728432319889,0.7868,2443.3,2442.8,4.09356]
[1728432320937,0.7868,2443.3,2442.9,4.09347]
[1728432321737,0.7868,2443.3,2443.0,4.0933]
[1728432321924,0.7643,2443.4,2443.0,4.0933]
[1728432322327,0.7643,2443.4,2443.0,5.36442236]
[1728432322534,0.7643,2443.4,2443.0,1.27112236]
[1728432322697,0.20924856,2443.7,2443.2,4.09288]
[1728432322698,0.7909,2443.6,2443.2,4.09288]
[1728432322897,4.88323,2443.6,2443.0,8.18647]
[1728432323338,0.7909,2443.6,2443.0,7.86034363]
[1728432323540,0.7909,2443.6,2443.2,4.09289]
[1728432324450,0.7909,2443.6,2443.2,8.18579]
[1728432324738,0.7909,2443.6,2443.2,4.09289]
[1728432325702,11.71931237,2444.0,2443.4,4.09256]
[1728432325703,0.8082,2443.9,2443.4,4.09256]
[1728432326022,0.8082,2443.9,2443.5,0.409256]
[1728432326023,4.09205,2443.8,2443.5,0.409256]
[1728432326222,4.09205,2443.8,2443.2,8.62341363]
[1728432326223,4.09205,2443.8,2443.2,4.8563]
[1728432326633,4.90004,2443.9,2443.2,4.85627]
[1728432327026,4.90004,2443.9,2443.3,4.09273]
[1728432327237,4.90004,2443.9,2443.4,0.8949]
[1728432327856,0.8082,2443.9,2443.4,4.9875]
[1728432328211,4.90007,2443.9,2443.4,4.9875]
[1728432329259,4.09159,2444.1,2443.5,4.09246]
[1728432329492,0.7977,2444.1,2443.8,4.09197]
[1728432329644,4.86938,2444.4,2443.8,4.09197]
[1728432329988,0.7783,2444.4,2443.9,0.8289]
[1728432330150,0.7783,2444.4,2444.0,4.583708]
[1728432330545,4.09064,2444.7,2444.0,4.583628]
[1728432330777,4.89404,2444.7,2444.1,4.09135]
[1728432331155,3.0,2444.6,2444.1,4.09135]
[1728432331588,4.89404,2444.7,2444.2,4.0913]
[1728432331589,0.8034,2444.7,2444.2,4.0913]
[1728432331752,0.8034,2444.7,2444.2,4.09122]
[1728432332085,0.795,2445.1,2444.5,3.76711363]
[1728432332321,0.20188587,2445.6,2445.2,0.7568]
[1728432332448,0.64119474,2446.2,2445.4,4.08925]
[1728432332683,0.795,2446.3,2445.7,3.76711363]
[1728432332973,0.795,2446.3,2444.9,3.0]
[1728432332974,4.08859,2445.9,2445.4,0.7568]
[1728432333173,4.08859,2445.9,2444.4,4.52391363]
[1728432333174,0.795,2445.2,2444.4,4.52391363]
[1728432333420,0.795,2445.2,2444.6,4.09052]
[1728432333577,0.795,2445.2,2444.7,4.499412]
[1728432333771,4.08988,2445.1,2444.4,0.7568]
[1728432334016,4.08987,2445.1,2444.1,2.11179916]
[1728432334216,4.08987,2445.1,2444.1,3.7847]
[1728432334515,4.08987,2445.1,2444.2,4.0912]
[1728432334683,4.08998,2445.0,2444.2,4.0912]
[1728432335019,4.08987,2445.1,2444.2,8.18236]
[1728432335313,4.09015,2444.9,2444.2,4.09116]
[1728432335508,4.09015,2444.9,2444.2,5.66461736]
[1728432335713,4.08987,2445.1,2444.2,5.66461736]
[1728432335876,4.08987,2445.1,2444.3,4.09114]
[1728432336080,8.17984,2445.1,2444.3,4.09114]
[1728432336382,4.09005,2445.0,2444.2,5.66461736]
[1728432336622,4.09005,2445.0,2444.3,0.94493174]
[1728432337292,4.09017,2444.9,2444.3,0.94493174]
[1728432338980,4.08992,2445.1,2444.3,0.94493174]
[1728432339285,4.09017,2444.9,2444.3,0.94493174]
[1728432339882,4.09017,2444.9,2444.3,5.03600174]
[1728432340082,4.09017,2444.9,2444.4,0.91271617]
[1728432340495,4.09017,2444.9,2444.2,4.09116]
[1728432340705,4.09017,2444.9,2444.1,3.7847]
[1728432340706,4.09096,2444.5,2444.1,0.7847]
[1728432340915,4.09096,2444.5,2443.8,4.09195]
[1728432340916,4.09111,2444.4,2443.9,0.7838]
[1728432341116,4.09111,2444.4,2443.9,1.271375]
[1728432341286,4.09096,2444.5,2443.9,1.271375]
[1728432342024,4.091,2444.4,2443.9,1.271375]
[1728432342227,4.09096,2444.5,2443.9,1.271375]
[1728432342389,4.09096,2444.5,2443.9,5.363155]
[1728432342722,4.09096,2444.5,2443.9,1.271375]
[1728432342926,4.09113,2444.4,2443.9,1.271375]
[1728432343109,4.09121,2444.3,2443.9,0.7838]
[1728432343311,4.09163,2444.1,2443.6,0.8312]
[1728432345019,4.91497,2444.3,2443.6,4.92341]
[1728432345227,7.85801363,2444.5,2443.8,4.09197]
[1728432345228,4.0909,2444.5,2443.8,4.09197]
[1728432345430,4.09098,2444.4,2443.8,4.09197]
[1728432345833,4.0909,2444.5,2443.9,4.09179]
[1728432346137,4.0909,2444.5,2443.8,4.09197]
[1728432346296,4.0911,2444.4,2443.8,4.09197]
[1728432346693,4.0911,2444.4,2443.6,0.8312]
[1728432346694,4.09179,2444.0,2443.6,0.8312]
[1728432346892,4.09161,2444.1,2443.6,0.8312]
[1728432347621,4.0917,2444.0,2443.6,0.8312]
[1728432347821,4.09161,2444.1,2443.6,0.8312]
[1728432350530,4.09165,2444.0,2443.6,0.8312]
[1728432351107,4.09165,2444.0,2443.4,4.09263]
[1728432351108,4.09182,2443.9,2443.4,0.8033]
[1728432351315,4.09182,2443.9,2443.1,11.39306]
[1728432351316,4.09229,2443.7,2443.2,0.8033]
[1728432351528,8.18458,2443.7,2443.2,0.8033]
[1728432351835,4.09238,2443.6,2443.2,0.8033]
[1728432352635,4.09229,2443.7,2443.2,0.8033]
[1728432352940,4.09229,2443.7,2443.2,4.89625]
[1728432353145,4.09229,2443.7,2443.2,5.795181]
[1728432353299,4.90638,2443.9,2443.3,4.09281]
[1728432353726,4.90638,2443.9,2443.3,8.18552]
[1728432353928,8.18383,2443.9,2443.3,4.09271]
[1728432354113,4.09188,2443.9,2443.3,8.18542]
[1728432354317,4.09188,2443.9,2443.4,0.9887651]
[1728432354623,4.09188,2443.9,2443.4,5.0814151]
[1728432354829,4.09188,2443.9,2443.4,0.9887651]
[1728432355124,4.09188,2443.9,2443.4,5.0814151]
[1728432355827,3.0,2444.0,2443.6,0.8138]
[1728432356203,7.09168,2444.0,2443.6,0.8138]
[1728432360349,4.09203,2443.8,2443.6,0.8138]
[1728432360503,4.09203,2443.8,2443.4,0.7947]
[1728432361105,4.0923,2443.7,2443.2,0.7766]
[1728432361339,4.0923,2443.7,2442.9,4.09345]
[1728432361340,4.0926,2443.5,2442.9,4.87005]
[1728432361525,4.09266,2443.4,2442.9,4.87005]
[1728432361727,4.09287,2443.3,2442.9,1.67298]
[1728432361927,0.7664,2443.6,2442.6,0.7766]
[1728432362151,3.0,2443.7,2442.3,4.09437]
[1728432362152,4.0936,2442.9,2442.3,4.09437]
[1728432362309,4.0936,2442.9,2442.4,0.7766]
[1728432363657,4.0937,2442.8,2442.4,0.7766]
[1728432364036,4.0936,2442.9,2442.4,0.7766]
[1728432364246,8.95292,2443.1,2442.4,4.87093]
[1728432364560,4.85963,2443.1,2442.4,5.76746]
[1728432365035,4.85963,2443.1,2442.5,4.09404]
[1728432365223,0.7664,2443.1,2442.4,1.67313]
[1728432365424,7.90003,2443.3,2442.6,8.18771]
[1728432365625,4.09299,2443.2,2442.6,4.09384]
[1728432365946,3.0,2443.1,2442.6,4.09384]
[1728432366396,7.90003,2443.3,2442.6,8.18773]
[1728432366524,9.89906388,2443.3,2442.6,8.18773]
[1728432366861,9.89906388,2443.3,2442.7,4.0938]
[1728432367360,9.89906388,2443.3,2442.6,4.09384]
[1728432367361,7.09283,2443.3,2442.9,0.8281]
[1728432367737,3.0,2443.4,2442.9,0.8281]
[1728432367937,7.09266,2443.4,2442.9,0.8281]
[1728432368338,4.84867,2443.5,2442.9,0.8281]
[1728432368339,0.7561,2443.5,2443.1,4.09306]
[1728432368546,4.09219,2443.7,2443.0,4.09319]
[1728432368547,4.09235,2443.6,2443.0,4.09319]
[1728432368753,4.09219,2443.7,2443.0,4.09319]
[1728432368965,4.09219,2443.7,2443.1,4.09315]
[1728432369637,4.09219,2443.7,2443.2,4.09296]
[1728432370760,8.194,2443.8,2443.2,8.18584]
[1728432370960,3.774,2443.8,2443.2,8.18584]
[1728432371267,3.774,2443.8,2443.2,4.09288]
[1728432372062,4.09216,2443.7,2443.2,4.09288]
[1728432372265,4.09216,2443.7,2443.2,4.9607069]
[1728432372601,7.86599,2443.8,2443.2,4.9607069]
[1728432374682,3.774,2443.8,2443.3,0.7676]
[1728432374882,3.0,2443.8,2443.3,4.8604]
[1728432376428,3.0,2443.8,2443.3,5.84251069]
[1728432376591,7.09201,2443.8,2443.3,1.74971069]
[1728432376777,4.09216,2443.7,2443.3,0.7676]
[1728432377302,4.09216,2443.7,2443.1,0.7676]
[1728432377608,4.09233,2443.6,2443.1,0.7676]
[1728432377994,4.09251,2443.5,2443.1,0.7676]
[1728432378298,4.093,2443.2,2442.8,0.7676]
[1728432378522,4.09319,2443.1,2442.5,0.7676]
[1728432378681,4.90239,2443.1,2442.5,0.7676]
[1728432379171,8.99569,2443.1,2442.5,0.7676]
[1728432379605,4.90239,2443.1,2442.5,0.7676]
[1728432379768,4.90239,2443.1,2442.6,4.09399]
[1728432379964,8.99566,2443.1,2442.5,4.86176]
[1728432380784,4.90239,2443.1,2442.5,4.86176]
[1728432380987,4.90239,2443.1,2442.6,4.09399]
[1728432381172,4.09333,2443.0,2442.5,1.663198]
[1728432381379,4.90239,2443.1,2442.5,5.757358]
[1728432381575,4.90239,2443.1,2442.6,4.09397]
[1728432382473,3.0,2443.2,2442.7,4.09382]
[1728432382688,7.09301,2443.2,2442.6,9.1729988]
[1728432382886,7.09301,2443.2,2442.6,8.18786]
[1728432384460,7.09301,2443.2,2442.6,8.18779]
[1728432386296,7.09301,2443.2,2442.6,4.09389]
[1728432387009,4.2608755,2443.2,2442.5,0.7676]
[1728432387170,4.2608755,2443.2,2442.1,0.8244]
[1728432387171,4.0941,2442.6,2442.1,0.8244]
[1728432387478,4.8997,2442.6,2442.1,0.8244]
[1728432387996,4.8997,2442.6,2442.1,5.411145]
[1728432387997,0.8056,2442.6,2442.1,5.411145]
[1728432388323,7.89924,2442.9,2442.2,4.09451]
[1728432388463,3.8056,2442.9,2442.1,1.316325]
[1728432388670,4.09409,2442.6,2442.1,1.316325]
[1728432389115,4.09409,2442.6,2442.1,5.411155]
[1728432390054,4.09373,2442.8,2442.1,5.411155]
[1728432390218,8.18753,2442.8,2442.2,0.9506065]
[1728432390538,8.18753,2442.8,2442.2,5.0452465]
[1728432390742,4.09394,2442.7,2442.2,5.0452465]
[1728432391631,7.8991,2442.9,2442.3,4.09439]
[1728432391821,7.89922,2442.9,2442.4,0.91395565]
[1728432392750,3.8056,2442.9,2442.4,0.91395565]
[1728432392949,4.09366,2442.8,2442.2,8.1891]
[1728432393260,4.09366,2442.8,2442.2,4.09454]
[1728432393433,4.09366,2442.8,2442.3,4.09449]
[1728432393634,3.8056,2442.9,2442.3,4.09449]
[1728432393830,3.8056,2442.9,2442.3,5.0450255]
[1728432394070,4.09417,2442.5,2442.1,1.316325]
[1728432394944,4.09399,2442.7,2442.1,1.316325]
[1728432395144,4.09402,2442.6,2442.1,1.316325]
[1728432395947,4.09399,2442.7,2442.1,1.316325]
[1728432396161,4.09367,2442.8,2442.2,8.18911]
[1728432397033,7.89917,2442.9,2442.3,4.09448]
[1728432397278,7.09357,2442.9,2442.4,4.84743]
[1728432397448,3.0,2442.9,2442.5,4.09412]
[1728432397648,3.0,2442.9,2442.4,5.741629]
[1728432397649,3.0,2442.9,2442.6,4.09397]
[1728432397845,3.0,2443.0,2442.6,4.09397]
[1728432398057,7.09343,2443.0,2442.4,5.741579]
[1728432398277,7.09343,2443.0,2442.4,9.835769]
[1728432400057,7.09343,2443.0,2442.5,4.09414]
[1728432400271,7.09343,2443.0,2442.4,5.741579]
[1728432400436,7.09343,2443.0,2442.4,9.835799]
[1728432401091,7.09343,2443.0,2442.4,5.741579]
[1728432401374,7.09343,2443.0,2442.5,4.09415]
[1728432401538,3.0,2443.0,2442.5,4.09415]
[1728432403638,7.09335,2443.0,2442.5,4.09415]
[1728432404635,7.09335,2443.0,2442.4,9.835799]
[1728432404838,7.09335,2443.0,2442.4,5.741579]
[1728432406039,4.09354,2442.9,2442.4,5.741579]
[1728432409613,4.0937,2442.8,2442.2,8.94019]
[1728432410169,4.09354,2442.9,2442.2,0.751]
[1728432410395,4.09354,2442.9,2442.4,4.09421]
[1728432410576,3.0,2443.0,2442.4,4.09421]
[1728432410781,7.09333,2443.0,2442.5,4.09416]
[1728432411182,0.7876,2443.1,2442.6,4.09386]
[1728432411613,4.88078,2443.1,2442.5,0.8326]
[1728432411913,4.09335,2443.0,2442.5,4.92673]
[1728432413019,8.97409,2443.1,2442.5,4.92673]
[1728432413177,8.97409,2443.1,2442.5,5.8772731]
[1728432413585,4.09336,2443.0,2442.5,1.7831431]
[1728432413787,4.09336,2443.0,2442.4,4.09418]
[1728432413788,4.09361,2442.9,2442.4,4.09418]
[1728432415215,4.09336,2443.0,2442.5,4.09416]
[1728432415425,4.09336,2443.0,2442.4,4.09418]
[1728432415426,3.7876,2443.1,2442.6,4.85109]
[1728432420427,7.88081,2443.1,2442.6,0.7571]
[1728432420946,4.09336,2443.0,2442.6,0.7571]
[1728432421256,4.09336,2443.0,2442.5,4.09414]
[1728432422432,3.7876,2443.1,2442.6,4.09395]
[1728432422633,3.817,2443.3,2442.8,4.09353]
[1728432422849,2.14632494,2443.4,2443.0,4.09332]
[1728432423166,2.96332494,2443.7,2443.2,4.09287]
[1728432423368,2.96332494,2443.7,2443.3,4.86502]
[1728432423369,0.817,2443.7,2443.3,4.86502]
[1728432423525,0.20200466,2443.9,2443.4,4.09265]
[1728432423860,4.092,2443.8,2443.3,4.865]
[1728432425053,3.92714062,2443.9,2443.3,4.865]
[1728432425565,8.01897062,2443.9,2443.3,4.865]
[1728432427130,8.01897062,2443.9,2443.0,4.89721]
[1728432427131,4.0925,2443.5,2443.0,4.89721]
[1728432427336,4.0925,2443.5,2442.7,0.804]
[1728432427337,4.90414,2443.3,2442.7,0.804]
[1728432427521,0.8113,2443.3,2442.8,4.09355]
[1728432427720,0.8113,2443.3,2442.8,8.18711]
[1728432427721,3.8113,2443.3,2442.8,8.18711]
[1728432428560,3.8113,2443.3,2442.9,4.09349]
[1728432428870,3.0,2443.4,2442.9,4.09349]
[1728432429166,7.09275,2443.4,2442.8,4.09355]
[1728432429456,3.0,2443.4,2442.8,4.09355]
[1728432429857,3.0,2443.4,2442.8,8.18711]
[1728432430025,7.09266,2443.4,2442.8,8.18711]
[1728432430424,4.0929,2443.3,2442.8,4.09355]
[1728432430736,4.093,2443.2,2442.7,0.804]
[1728432431525,7.09266,2443.4,2442.8,4.09349]
[1728432431723,3.0,2443.4,2442.8,4.09349]
[1728432431960,4.09258,2443.5,2442.9,0.7587]
[1728432432462,4.09258,2443.5,2442.9,4.85218]
[1728432433441,8.18523,2443.5,2442.9,4.85218]
[1728432433740,4.09267,2443.4,2442.9,0.7587]
[1728432435260,5.290113,2443.5,2442.9,4.85206]
[1728432435936,4.09258,2443.5,2442.9,4.85209]
[1728432436145,4.09258,2443.5,2442.9,0.7587]
[1728432436347,4.09285,2443.3,2442.9,0.7587]
[1728432436547,4.87935,2443.3,2442.9,0.7587]
[1728432437455,4.09301,2443.2,2442.7,0.5793952]
[1728432437659,4.09301,2443.2,2442.7,0.7502]
[1728432438532,4.87935,2443.3,2442.7,4.84402]
[1728432438727,4.87935,2443.3,2442.8,4.09365]
[1728432439358,3.0,2443.4,2443.0,0.7502]
[1728432439558,3.0,2443.4,2443.1,4.09314]
[1728432439774,3.8162,2443.8,2443.3,0.7502]
[1728432440076,4.90834,2443.8,2443.3,0.7502]
[1728432441632,3.8162,2443.8,2443.3,4.84297]
[1728432442135,7.90829,2443.8,2443.3,0.7502]
[1728432442358,9.12850047,2443.8,2443.3,0.7502]
[1728432442666,3.0,2444.0,2443.5,4.91479]
[1728432442873,3.0,2444.0,2443.6,4.09223]
[1728432443057,3.0,2444.0,2443.6,8.18446]
[1728432443647,3.0,2444.0,2443.7,4.09214]
[1728432443878,3.0,2444.0,2443.8,0.8224]
[1728432444179,7.09132,2444.2,2443.8,0.8224]
[1728432445334,4.09158,2444.1,2443.8,0.8224]
[1728432445677,7.09166,2444.0,2443.5,0.7511]
[1728432446179,3.0,2444.0,2443.5,0.7511]
[1728432446375,3.0,2444.0,2443.5,4.84357]
[1728432447630,3.0,2444.0,2443.5,8.93592]
[1728432447835,3.0,2444.0,2443.5,9.829512]
[1728432450843,3.0,2444.0,2443.5,5.737042]
[1728432451170,3.0,2444.0,2443.5,9.829422]
[1728432451777,3.0,2444.0,2443.6,4.0923]
[1728432451973,3.0,2444.0,2443.5,5.737042]
[1728432451974,4.196298,2444.2,2443.7,4.09215]
[1728432452177,3.0,2444.2,2443.7,4.09215]
[1728432452485,7.09135,2444.2,2443.7,4.09215]
[1728432452640,7.09135,2444.2,2443.6,0.5737042]
[1728432453284,7.09135,2444.2,2443.6,4.6659842]
[1728432454161,7.09135,2444.2,2443.7,4.09208]
[1728432454162,3.0,2444.2,2443.7,4.09208]
[1728432454363,0.20868595,2444.4,2443.8,4.86705]
[1728432454364,3.20868595,2444.4,2443.8,4.86705]
[1728432454552,4.09088,2444.5,2443.9,4.09172]
[1728432454753,4.09099,2444.4,2444.0,0.895877]
[1728432455184,4.09099,2444.4,2443.8,4.86705]
[1728432456634,4.09166,2444.0,2443.6,0.7752]
[1728432456797,4.09191,2443.9,2443.4,0.7752]
[1728432456954,8.18382,2443.9,2443.4,0.7752]
[1728432457287,4.09191,2443.9,2443.4,5.44147125]
[1728432457494,4.09232,2443.6,2443.0,4.84629]
[1728432457700,0.7934,2443.6,2443.0,0.7531]
[1728432457864,4.09259,2443.5,2443.0,0.7531]
[1728432458351,0.7934,2443.6,2443.0,0.7531]
[1728432458352,0.7934,2443.6,2443.0,1.237754]
[1728432458859,0.7934,2443.6,2443.0,0.484654]
[1728432459059,0.7934,2443.6,2442.7,4.86802]
[1728432459060,4.09254,2443.5,2442.9,4.09346]
[1728432461096,4.09265,2443.4,2442.9,4.09346]
[1728432461685,4.09254,2443.5,2442.9,4.09346]
[1728432463072,4.09254,2443.5,2442.9,8.18684]
[1728432463256,4.09254,2443.5,2442.9,9.082954]
[1728432463453,4.09254,2443.5,2443.0,0.7743]
[1728432463791,2.93420528,2444.0,2443.5,4.09247]
[1728432463990,4.09168,2444.0,2443.6,1.183547]
[1728432464241,4.09168,2444.0,2443.6,0.7743]
[1728432465406,0.7934,2444.2,2443.6,0.7743]
[1728432465605,11.51125,2444.3,2443.6,4.86651]
[1728432466643,11.51125,2444.3,2443.7,4.09203]
[1728432466801,11.51125,2444.3,2443.8,4.09195]
[1728432467144,11.51125,2444.3,2443.8,4.987796]
[1728432468932,7.42,2444.3,2443.8,4.987716]
[1728432470061,11.51124,2444.3,2443.8,0.895846]
[1728432470216,11.51124,2444.3,2443.0,3.0]
[1728432470217,4.09165,2444.0,2443.5,4.09247]
[1728432470421,4.92055,2444.0,2443.4,4.87437]
[1728432470725,4.92055,2444.0,2443.5,4.501717]
[1728432470927,4.92055,2444.0,2443.5,0.409257]
[1728432471156,4.92055,2444.0,2443.4,4.87437]
[1728432471352,0.8289,2444.0,2443.5,4.09245]
[1728432471554,4.88276,2444.2,2443.4,4.87437]
[1728432471851,4.0915,2444.1,2443.6,4.09219]
[1728432472227,1.639426,2444.1,2443.4,4.87437]
[1728432472449,4.09166,2444.0,2443.4,4.87437]
[1728432472751,0.7913,2443.9,2443.4,4.87437]
[1728432474552,0.7913,2443.9,2443.4,4.87436]
[1728432475671,4.09166,2444.0,2443.4,4.87436]
[1728432476543,5.1559616,2444.0,2443.4,4.87436]
[1728432477266,5.1559616,2444.0,2443.4,8.96692]
[1728432477565,5.1559616,2444.0,2443.4,4.87436]
[1728432478133,4.09166,2444.0,2443.5,4.09248]
[1728432479844,4.09166,2444.0,2443.4,4.87434]
[1728432480256,4.09184,2443.9,2443.4,4.87434]
[1728432480456,4.09166,2444.0,2443.5,4.09246]
[1728432480667,4.09166,2444.0,2443.4,4.87434]
[1728432480876,9.2477296,2444.0,2443.4,4.87434]
[1728432481072,4.84987,2443.9,2443.2,4.86637]
[1728432481244,4.84987,2443.9,2443.3,4.09281]
[1728432481445,4.84987,2443.9,2443.5,4.09245]
[1728432481446,0.758,2443.9,2443.5,4.09245]
[1728432481752,0.758,2443.9,2443.3,4.09268]
[1728432481959,0.758,2443.9,2443.4,4.0926]
[1728432483346,0.758,2443.9,2443.4,4.09262]
[1728432483982,0.758,2443.9,2443.3,8.672028]
[1728432484360,4.84984,2443.9,2443.2,4.86647]
[1728432484668,0.8284,2443.6,2443.0,4.09319]
[1728432485053,4.92073,2443.6,2443.0,4.09319]
[1728432485456,0.8284,2443.6,2443.0,4.09319]
[1728432485642,0.8284,2443.6,2443.2,4.09298]
[1728432487391,0.8284,2443.6,2443.3,4.09278]
[1728432487774,0.8284,2443.6,2443.4,4.09262]
[1728432487967,0.8284,2443.6,2443.2,4.09284]
[1728432488161,0.8284,2443.6,2443.4,4.09263]
[1728432490053,0.8284,2443.6,2443.2,4.5509489]
[1728432490455,0.8284,2443.6,2443.3,4.09282]
[1728432492687,0.8284,2443.6,2443.2,4.09284]
[1728432495198,0.8284,2443.6,2443.0,4.09324]
[1728432495398,0.8284,2443.6,2442.9,0.7893]
[1728432495399,0.8005,2443.4,2442.8,8.18711]
[1728432495866,0.8005,2443.4,2442.8,4.09354]
[1728432496066,0.8005,2443.4,2442.8,8.18711]
[1728432496273,0.8005,2443.4,2442.6,4.09388]
[1728432496274,4.09302,2443.2,2442.6,4.09388]
[1728432496477,1.219002,2443.1,2442.6,4.09388]
[1728432496704,0.8097,2443.1,2442.6,4.09388]
[1728432497366,0.8097,2443.1,2442.6,8.18778]
[1728432497592,0.8097,2443.1,2442.7,4.09375]
[1728432497896,0.8097,2443.1,2442.6,4.09388]
[1728432498885,2.009259,2443.1,2442.4,4.09428]
[1728432499082,2.009259,2443.1,2442.3,4.09448]
[1728432499083,4.0935,2442.9,2442.3,4.09448]
[1728432500990,0.7783,2442.8,2442.6,4.09387]
[1728432501192,0.7783,2442.8,2442.5,4.09412]
[1728432501578,0.7783,2442.8,2442.6,4.09399]
[1728432504301,0.7783,2442.8,2442.4,8.18844]
[1728432504500,0.7783,2442.8,2442.4,5.0029751]
[1728432504803,0.7783,2442.8,2442.2,8.18908]
[1728432505208,0.7783,2442.8,2442.3,4.09438]
[1728432505416,0.7783,2442.8,2442.4,4.0943]
[1728432505598,0.7783,2442.8,2442.4,8.18852]
[1728432506779,0.7783,2442.8,2442.5,4.09416]
[1728432507193,0.7783,2442.8,2442.4,4.09431]
[1728432508283,1.265475,2442.8,2442.1,0.8052]